[Event "Early-Titled-Tuesday-Blitz-September-05-2023"]
[Site "Chess.com"]
[Date "2023.09.05"]
[Round "5"]
[White "Battever"]
[Black "angryspacevoid"]
[Result "0-1"]
[WhiteElo "2451"]
[BlackElo "2606"]
[TimeControl "180+1"]
[EndTime "8:53:43 PDT"]
[Termination "angryspacevoid won by resignation"]

1. Nf3 {[%clk 0:03:00.9]} 1... c5 {[%clk 0:02:58.4]} 2. b3 {[%clk 0:02:59.3]}
2... Nc6 {[%clk 0:02:57.7]} 3. Bb2 {[%clk 0:03:00]} 3... Nf6 {[%clk 0:02:55.7]}
4. Bxf6 {[%clk 0:02:48.2]} 4... gxf6 {[%clk 0:02:52.7]} 5. c4 {[%clk 0:02:48.3]}
5... d5 {[%clk 0:02:42.6]} 6. cxd5 {[%clk 0:02:47.9]} 6... Qxd5 {[%clk
0:02:40.9]} 7. Nc3 {[%clk 0:02:48.3]} 7... Qd8 {[%clk 0:02:38.1]} 8. g3 {[%clk
0:02:45.2]} 8... h5 {[%clk 0:02:23.9]} 9. Bg2 {[%clk 0:02:42.8]} 9... Bg4 {[%clk
0:02:17.2]} 10. h3 {[%clk 0:02:37.3]} 10... Be6 {[%clk 0:02:11.3]} 11. Rc1
{[%clk 0:02:31.3]} 11... Qd7 {[%clk 0:02:06.6]} 12. Na4 {[%clk 0:01:56.3]} 12...
b6 {[%clk 0:02:00.8]} 13. d4 {[%clk 0:01:55.5]} 13... Rd8 {[%clk 0:01:50.6]} 14.
dxc5 {[%clk 0:01:51.6]} 14... Qb7 {[%clk 0:01:46.8]} 15. Nd2 {[%clk 0:01:39.6]}
15... Bd5 {[%clk 0:01:40.8]} 16. e4 {[%clk 0:01:30.6]} 16... Be6 {[%clk
0:01:40.3]} 17. cxb6 {[%clk 0:01:25.8]} 17... Bh6 {[%clk 0:01:28.4]} 18. f4
{[%clk 0:01:21.7]} 18... axb6 {[%clk 0:01:13.5]} 19. Qxh5 {[%clk 0:00:57.8]}
19... Rxd2 {[%clk 0:01:10.6]} 20. O-O {[%clk 0:00:41.4]} 20... Nd4 {[%clk
0:00:54.8]} 21. Rcd1 {[%clk 0:00:30.1]} 21... Rxg2+ {[%clk 0:00:26.5]} 22. Kxg2
{[%clk 0:00:28]} 22... Qxe4+ {[%clk 0:00:24.6]} 23. Kh2 {[%clk 0:00:17.7]} 23...
Bg7 {[%clk 0:00:23.9]} 24. Rxd4 {[%clk 0:00:16.6]} 24... Qxd4 {[%clk 0:00:21.2]}
25. Qb5+ {[%clk 0:00:14.1]} 25... Bd7 {[%clk 0:00:20.9]} 26. f5 {[%clk
0:00:14.4]} 26... Bxb5 {[%clk 0:00:20.6]} 0-1

[Event "Early-Titled-Tuesday-Blitz-September-05-2023"]
[Site "Chess.com"]
[Date "2023.09.05"]
[Round "5"]
[White "ArtemDyachuk"]
[Black "MarcoRiehle"]
[Result "0-1"]
[WhiteElo "2570"]
[BlackElo "2801"]
[TimeControl "180+1"]
[EndTime "8:53:45 PDT"]
[Termination "MarcoRiehle won on time"]

1. e4 {[%clk 0:03:00.4]} 1... e5 {[%clk 0:02:57.1]} 2. Nf3 {[%clk 0:02:59.9]}
2... Nf6 {[%clk 0:02:57.6]} 3. d4 {[%clk 0:02:59.1]} 3... Nxe4 {[%clk
0:02:57.1]} 4. Bd3 {[%clk 0:02:59.3]} 4... Nc6 {[%clk 0:02:57.7]} 5. dxe5 {[%clk
0:02:59.5]} 5... Nc5 {[%clk 0:02:57.2]} 6. Bc4 {[%clk 0:02:59.2]} 6... d6 {[%clk
0:02:57.3]} 7. O-O {[%clk 0:01:43.4]} 7... Be6 {[%clk 0:02:56.8]} 8. Bxe6 {[%clk
0:01:22.3]} 8... Nxe6 {[%clk 0:02:57.7]} 9. Qe2 {[%clk 0:01:21.3]} 9... dxe5
{[%clk 0:02:56.7]} 10. Nxe5 {[%clk 0:01:20.8]} 10... Nxe5 {[%clk 0:02:56.7]} 11.
Qxe5 {[%clk 0:01:20.4]} 11... Qd7 {[%clk 0:02:51.3]} 12. Nc3 {[%clk 0:01:19.3]}
12... Bd6 {[%clk 0:02:51.2]} 13. Qf5 {[%clk 0:01:15.7]} 13... O-O {[%clk
0:02:49.4]} 14. Be3 {[%clk 0:01:14.9]} 14... Qc6 {[%clk 0:02:44.3]} 15. Rad1
{[%clk 0:01:12.7]} 15... Rfe8 {[%clk 0:02:42.7]} 16. h4 {[%clk 0:01:01.7]} 16...
Rad8 {[%clk 0:02:34.8]} 17. h5 {[%clk 0:00:59.6]} 17... h6 {[%clk 0:02:35]} 18.
Qg4 {[%clk 0:00:48.6]} 18... Kh8 {[%clk 0:02:30.5]} 19. Qf5 {[%clk 0:00:46.5]}
19... Kg8 {[%clk 0:02:26.9]} 20. Rd2 {[%clk 0:00:43.3]} 20... Bc5 {[%clk
0:02:22.6]} 21. Rxd8 {[%clk 0:00:38.6]} 21... Rxd8 {[%clk 0:02:21.6]} 22. Re1
{[%clk 0:00:38.7]} 22... Bb4 {[%clk 0:02:14.9]} 23. Qg4 {[%clk 0:00:28.4]} 23...
Bxc3 {[%clk 0:02:13.9]} 24. bxc3 {[%clk 0:00:29.3]} 24... Qxc3 {[%clk
0:02:09.2]} 25. Rb1 {[%clk 0:00:27.1]} 25... Qxc2 {[%clk 0:02:01.2]} 26. Rxb7
{[%clk 0:00:26.3]} 26... a5 {[%clk 0:01:59.4]} 27. a4 {[%clk 0:00:18.6]} 27...
Kh7 {[%clk 0:01:34.2]} 28. Rb5 {[%clk 0:00:13.5]} 28... c5 {[%clk 0:01:21.2]}
29. Rxa5 {[%clk 0:00:09.8]} 29... c4 {[%clk 0:01:21.7]} 30. Ra7 {[%clk
0:00:07.4]} 30... Kg8 {[%clk 0:01:03.6]} 31. a5 {[%clk 0:00:06.3]} 31... c3
{[%clk 0:01:03.4]} 32. a6 {[%clk 0:00:05.3]} 32... Qb1+ {[%clk 0:01:03.1]} 33.
Kh2 {[%clk 0:00:05.2]} 33... c2 {[%clk 0:01:02.4]} 34. Rb7 {[%clk 0:00:05.6]}
34... c1=Q {[%clk 0:01:00.9]} 35. Bxc1 {[%clk 0:00:04.4]} 35... Qxc1 {[%clk
0:01:01.8]} 36. a7 {[%clk 0:00:04.8]} 36... Qc6 {[%clk 0:00:58.4]} 0-1

[Event "Early-Titled-Tuesday-Blitz-September-05-2023"]
[Site "Chess.com"]
[Date "2023.09.05"]
[Round "5"]
[White "slidingknight2775"]
[Black "Tsyhanchuk_Stanislav"]
[Result "0-1"]
[WhiteElo "2566"]
[BlackElo "2424"]
[TimeControl "180+1"]
[EndTime "8:53:45 PDT"]
[Termination "Tsyhanchuk_Stanislav won by resignation"]

1. d4 {[%clk 0:03:00.9]} 1... Nf6 {[%clk 0:02:59.7]} 2. c4 {[%clk 0:03:01.3]}
2... e6 {[%clk 0:02:59]} 3. Nc3 {[%clk 0:03:01.7]} 3... Bb4 {[%clk 0:02:57.7]}
4. e3 {[%clk 0:03:01.7]} 4... c5 {[%clk 0:02:55]} 5. Ne2 {[%clk 0:02:55.2]} 5...
Ne4 {[%clk 0:02:45.4]} 6. a3 {[%clk 0:02:43.2]} 6... Bxc3+ {[%clk 0:02:42.8]} 7.
bxc3 {[%clk 0:02:40.8]} 7... d6 {[%clk 0:02:33.3]} 8. f3 {[%clk 0:02:32.2]} 8...
Nf6 {[%clk 0:02:28.9]} 9. e4 {[%clk 0:02:31.2]} 9... Nc6 {[%clk 0:02:15.3]} 10.
Be3 {[%clk 0:02:30.5]} 10... Qa5 {[%clk 0:02:02]} 11. Kf2 {[%clk 0:02:21.5]}
11... O-O {[%clk 0:01:57]} 12. g4 {[%clk 0:02:13.1]} 12... Nd7 {[%clk
0:01:47.7]} 13. Qc2 {[%clk 0:01:57.3]} 13... f5 {[%clk 0:01:38.8]} 14. exf5
{[%clk 0:01:19.4]} 14... exf5 {[%clk 0:01:39.7]} 15. g5 {[%clk 0:01:08.2]} 15...
cxd4 {[%clk 0:01:26.4]} 16. cxd4 {[%clk 0:01:05.8]} 16... f4 {[%clk 0:01:10.3]}
17. Nxf4 {[%clk 0:00:56.8]} 17... Nxd4 {[%clk 0:01:07.5]} 18. Qd3 {[%clk
0:00:41.2]} 18... Nxf3 {[%clk 0:00:49.9]} 19. Qxd6 {[%clk 0:00:23.2]} 19... Nxg5
{[%clk 0:00:44.9]} 20. Bg2 {[%clk 0:00:19.2]} 20... Ne5 {[%clk 0:00:40.5]} 21.
Bd5+ {[%clk 0:00:15.8]} 21... Nef7 {[%clk 0:00:28.5]} 22. Rhe1 {[%clk 0:00:10]}
22... Ne4+ {[%clk 0:00:27.6]} 23. Bxe4 {[%clk 0:00:07.2]} 23... Nxd6 {[%clk
0:00:28]} 24. Bd3 {[%clk 0:00:08.1]} 24... Qg5 {[%clk 0:00:22.9]} 0-1

[Event "Early-Titled-Tuesday-Blitz-September-05-2023"]
[Site "Chess.com"]
[Date "2023.09.05"]
[Round "5"]
[White "dosto07"]
[Black "ljm509"]
[Result "1-0"]
[WhiteElo "2503"]
[BlackElo "2304"]
[TimeControl "180+1"]
[EndTime "8:53:46 PDT"]
[Termination "dosto07 won by resignation"]

1. e4 {[%clk 0:03:00.9]} 1... e6 {[%clk 0:02:59.5]} 2. d4 {[%clk 0:03:00.5]}
2... d5 {[%clk 0:02:59.5]} 3. Nd2 {[%clk 0:03:01]} 3... dxe4 {[%clk 0:02:59.3]}
4. Nxe4 {[%clk 0:03:01.2]} 4... Nd7 {[%clk 0:03:00.2]} 5. Nf3 {[%clk 0:02:59.3]}
5... Ngf6 {[%clk 0:03:00.7]} 6. Nxf6+ {[%clk 0:02:59.6]} 6... Nxf6 {[%clk
0:03:01.4]} 7. g3 {[%clk 0:02:59.9]} 7... Be7 {[%clk 0:03:02.3]} 8. Bg2 {[%clk
0:02:59.8]} 8... O-O {[%clk 0:03:03.2]} 9. O-O {[%clk 0:03:00.2]} 9... c5 {[%clk
0:03:03.5]} 10. Bf4 {[%clk 0:03:00.2]} 10... Qb6 {[%clk 0:02:58.9]} 11. b3
{[%clk 0:02:49.2]} 11... Rd8 {[%clk 0:02:57.9]} 12. dxc5 {[%clk 0:02:45.9]}
12... Bxc5 {[%clk 0:02:58.8]} 13. Qe2 {[%clk 0:02:45.8]} 13... Bd7 {[%clk
0:02:57.8]} 14. Ne5 {[%clk 0:02:41.2]} 14... Be8 {[%clk 0:02:53.6]} 15. Rad1
{[%clk 0:02:24.4]} 15... h6 {[%clk 0:02:47.3]} 16. c4 {[%clk 0:02:21.9]} 16...
a5 {[%clk 0:02:35.8]} 17. Qf3 {[%clk 0:02:21.5]} 17... Bd4 {[%clk 0:02:22.4]}
18. Qxb7 {[%clk 0:02:15.6]} 18... Qxb7 {[%clk 0:02:18.7]} 19. Bxb7 {[%clk
0:02:15.3]} 19... Rab8 {[%clk 0:02:16.1]} 20. Bf3 {[%clk 0:01:52]} 20... g5
{[%clk 0:02:15.4]} 21. Nxf7 {[%clk 0:01:01.6]} 21... gxf4 {[%clk 0:02:09.8]} 22.
Nxd8 {[%clk 0:01:01.3]} 22... Rxd8 {[%clk 0:02:09.8]} 23. gxf4 {[%clk
0:00:58.4]} 23... Nh5 {[%clk 0:01:57.7]} 24. Rfe1 {[%clk 0:00:45.7]} 24... Nxf4
{[%clk 0:01:50.6]} 25. Re4 {[%clk 0:00:42.4]} 25... e5 {[%clk 0:01:48.4]} 26. c5
{[%clk 0:00:31.7]} 26... Nh3+ {[%clk 0:01:38]} 27. Kf1 {[%clk 0:00:25.6]} 27...
Nxf2 {[%clk 0:01:37.7]} 28. Rexd4 {[%clk 0:00:20.1]} 28... exd4 {[%clk
0:01:26.5]} 29. Kxf2 {[%clk 0:00:20.3]} 29... Kg7 {[%clk 0:01:24.9]} 30. c6
{[%clk 0:00:20.4]} 30... Kf6 {[%clk 0:01:23.7]} 31. Rc1 {[%clk 0:00:14.2]} 31...
Rc8 {[%clk 0:01:19.3]} 32. Ke2 {[%clk 0:00:12.1]} 32... Ke5 {[%clk 0:01:18.3]}
33. Rc5+ {[%clk 0:00:10.6]} 33... Kd6 {[%clk 0:01:17.4]} 34. Rxa5 {[%clk
0:00:10.9]} 34... Bxc6 {[%clk 0:01:17.7]} 35. Ra6 {[%clk 0:00:10.7]} 35... Ke5
{[%clk 0:01:13.6]} 36. Rxc6 {[%clk 0:00:09.7]} 36... Re8 {[%clk 0:01:12.6]} 37.
Kd3 {[%clk 0:00:08.8]} 37... h5 {[%clk 0:01:09.7]} 38. Rh6 {[%clk 0:00:08.3]}
38... Rf8 {[%clk 0:01:09.3]} 39. Rxh5+ {[%clk 0:00:08.2]} 39... Kf4 {[%clk
0:01:09.4]} 40. Bd5 {[%clk 0:00:07.2]} 40... Rd8 {[%clk 0:01:09.7]} 41. Kxd4
{[%clk 0:00:07.1]} 41... Kg4 {[%clk 0:01:08.8]} 42. Rh7 {[%clk 0:00:07]} 42...
Rxd5+ {[%clk 0:01:08.7]} 43. Kxd5 {[%clk 0:00:06.8]} 1-0

[Event "Early-Titled-Tuesday-Blitz-September-05-2023"]
[Site "Chess.com"]
[Date "2023.09.05"]
[Round "5"]
[White "WilsonPalencia21"]
[Black "KatakuriDono"]
[Result "1-0"]
[WhiteElo "2530"]
[BlackElo "2328"]
[TimeControl "180+1"]
[EndTime "8:53:48 PDT"]
[Termination "WilsonPalencia21 won by resignation"]

1. d4 {[%clk 0:03:00.9]} 1... d5 {[%clk 0:02:59.6]} 2. c4 {[%clk 0:02:58.9]}
2... dxc4 {[%clk 0:03:00.5]} 3. Nf3 {[%clk 0:02:57.8]} 3... Nf6 {[%clk
0:03:00.4]} 4. e3 {[%clk 0:02:57.7]} 4... a6 {[%clk 0:03:00.8]} 5. Bxc4 {[%clk
0:02:57.6]} 5... b5 {[%clk 0:03:01.4]} 6. Be2 {[%clk 0:02:57.5]} 6... Bb7 {[%clk
0:03:01.7]} 7. a4 {[%clk 0:02:57.6]} 7... b4 {[%clk 0:03:01.6]} 8. Nbd2 {[%clk
0:02:56.6]} 8... e6 {[%clk 0:03:02]} 9. Nc4 {[%clk 0:02:56.3]} 9... Nbd7 {[%clk
0:03:02.3]} 10. O-O {[%clk 0:02:49.9]} 10... c5 {[%clk 0:03:02.4]} 11. Nfe5
{[%clk 0:02:48.7]} 11... Be7 {[%clk 0:02:57.1]} 12. b3 {[%clk 0:02:43.3]} 12...
cxd4 {[%clk 0:02:50]} 13. Qxd4 {[%clk 0:02:42.4]} 13... Nxe5 {[%clk 0:02:50]}
14. Qxe5 {[%clk 0:02:38.6]} 14... Qd5 {[%clk 0:02:39.7]} 15. Qxd5 {[%clk
0:02:37.5]} 15... Nxd5 {[%clk 0:02:40.6]} 16. Bb2 {[%clk 0:02:35.8]} 16... O-O
{[%clk 0:02:39.3]} 17. Bf3 {[%clk 0:02:35.5]} 17... Rab8 {[%clk 0:02:31.8]} 18.
Be5 {[%clk 0:02:33.4]} 18... Rbd8 {[%clk 0:02:24.1]} 19. Rac1 {[%clk 0:02:22.6]}
19... Ba8 {[%clk 0:02:21.7]} 20. Bd4 {[%clk 0:02:14]} 20... Bf6 {[%clk
0:02:20.2]} 21. Bxd5 {[%clk 0:02:04]} 21... Bxd5 {[%clk 0:02:16.3]} 22. Bxf6
{[%clk 0:02:02.9]} 22... gxf6 {[%clk 0:02:16.8]} 23. f3 {[%clk 0:01:59.7]} 23...
f5 {[%clk 0:02:13.2]} 24. Rfd1 {[%clk 0:01:56.4]} 24... Kg7 {[%clk 0:02:07.5]}
25. Kf2 {[%clk 0:01:48.7]} 25... Kf6 {[%clk 0:02:07]} 26. Ke2 {[%clk 0:01:47.5]}
26... Rg8 {[%clk 0:02:04.5]} 27. g3 {[%clk 0:01:47.2]} 27... h5 {[%clk
0:01:59.1]} 28. Rd4 {[%clk 0:01:42.4]} 28... Rc8 {[%clk 0:01:41.3]} 29. Rh4
{[%clk 0:01:22.7]} 29... Rh8 {[%clk 0:01:29]} 30. Rc2 {[%clk 0:00:46.4]} 30...
e5 {[%clk 0:01:24.5]} 31. Rd2 {[%clk 0:00:38.5]} 31... Bxc4+ {[%clk 0:01:21.7]}
32. Rxc4 {[%clk 0:00:37.3]} 32... Rxc4 {[%clk 0:01:21.6]} 33. bxc4 {[%clk
0:00:38.2]} 33... Ke6 {[%clk 0:01:21.6]} 34. c5 {[%clk 0:00:37]} 34... Rc8
{[%clk 0:01:17.6]} 35. Rd6+ {[%clk 0:00:35.7]} 35... Ke7 {[%clk 0:01:18.2]} 36.
Rxa6 {[%clk 0:00:34.3]} 36... Rxc5 {[%clk 0:01:18.8]} 37. Rb6 {[%clk 0:00:34.8]}
37... Rc4 {[%clk 0:01:14]} 38. a5 {[%clk 0:00:33.7]} 38... Rc2+ {[%clk
0:01:11.3]} 39. Kd3 {[%clk 0:00:33.2]} 39... Ra2 {[%clk 0:01:11.4]} 40. a6
{[%clk 0:00:30.8]} 40... b3 {[%clk 0:01:09.1]} 41. Kc3 {[%clk 0:00:30.6]} 41...
b2 {[%clk 0:01:07.2]} 42. Kc2 {[%clk 0:00:30.4]} 42... Kd7 {[%clk 0:01:04.2]}
43. Kb1 {[%clk 0:00:29.8]} 43... Ra1+ {[%clk 0:00:58.2]} 44. Kxb2 {[%clk
0:00:29.6]} 44... Rh1 {[%clk 0:00:58.8]} 45. a7 {[%clk 0:00:28.7]} 45... Rxh2+
{[%clk 0:00:56.6]} 46. Ka1 {[%clk 0:00:22.8]} 46... Rh1+ {[%clk 0:00:56.5]} 47.
Rb1 {[%clk 0:00:21.7]} 1-0

[Event "Early-Titled-Tuesday-Blitz-September-05-2023"]
[Site "Chess.com"]
[Date "2023.09.05"]
[Round "5"]
[White "venturov"]
[Black "blitzking1729"]
[Result "0-1"]
[WhiteElo "2418"]
[BlackElo "2754"]
[TimeControl "180+1"]
[EndTime "8:53:52 PDT"]
[Termination "blitzking1729 won by resignation"]

1. e4 {[%clk 0:03:00.9]} 1... g6 {[%clk 0:02:55]} 2. d4 {[%clk 0:02:57.2]} 2...
Bg7 {[%clk 0:02:55.4]} 3. Nf3 {[%clk 0:02:53.2]} 3... d6 {[%clk 0:02:55.3]} 4.
c4 {[%clk 0:02:53.1]} 4... Nd7 {[%clk 0:02:46.9]} 5. Nc3 {[%clk 0:02:52.7]} 5...
e5 {[%clk 0:02:46.3]} 6. g3 {[%clk 0:02:49.6]} 6... Ne7 {[%clk 0:02:39.5]} 7.
Bg2 {[%clk 0:02:46.7]} 7... O-O {[%clk 0:02:40.1]} 8. O-O {[%clk 0:02:45.9]}
8... h6 {[%clk 0:02:39.8]} 9. dxe5 {[%clk 0:02:31.7]} 9... Nxe5 {[%clk
0:02:38.3]} 10. Nxe5 {[%clk 0:02:29.9]} 10... dxe5 {[%clk 0:02:39.2]} 11. Qc2
{[%clk 0:02:16.8]} 11... Nc6 {[%clk 0:02:36.9]} 12. Be3 {[%clk 0:02:07.5]} 12...
Nd4 {[%clk 0:02:36.6]} 13. Bxd4 {[%clk 0:01:52.6]} 13... exd4 {[%clk 0:02:36.5]}
14. Nd5 {[%clk 0:01:53.2]} 14... a5 {[%clk 0:02:17.9]} 15. Nf4 {[%clk
0:01:48.7]} 15... Kh7 {[%clk 0:02:13.9]} 16. Nd3 {[%clk 0:01:48.3]} 16... Qe7
{[%clk 0:02:13.8]} 17. f4 {[%clk 0:01:46.8]} 17... f5 {[%clk 0:02:13]} 18. e5
{[%clk 0:01:45.7]} 18... c6 {[%clk 0:02:13.1]} 19. b3 {[%clk 0:01:29.1]} 19...
a4 {[%clk 0:02:11]} 20. b4 {[%clk 0:01:26]} 20... Be6 {[%clk 0:02:06.9]} 21. a3
{[%clk 0:01:10.5]} 21... Rfd8 {[%clk 0:02:03.5]} 22. Rac1 {[%clk 0:01:03.7]}
22... Bf8 {[%clk 0:01:55.3]} 23. Qb2 {[%clk 0:01:03.3]} 23... Qf7 {[%clk
0:01:53.7]} 24. Qc2 {[%clk 0:00:55.6]} 24... Be7 {[%clk 0:01:43.6]} 25. Rf2
{[%clk 0:00:55.8]} 25... Kg7 {[%clk 0:01:42.7]} 26. Rd2 {[%clk 0:00:56.1]} 26...
Rd7 {[%clk 0:01:31.3]} 27. Kf2 {[%clk 0:00:49.6]} 27... g5 {[%clk 0:01:28.9]}
28. Bf3 {[%clk 0:00:42.3]} 28... Rdd8 {[%clk 0:01:27.7]} 29. b5 {[%clk
0:00:20.4]} 29... cxb5 {[%clk 0:01:21.3]} 30. cxb5 {[%clk 0:00:20.4]} 30... Bxa3
{[%clk 0:01:20.4]} 31. Ra1 {[%clk 0:00:20.6]} 31... Bb3 {[%clk 0:01:18.3]} 32.
Qb1 {[%clk 0:00:14.6]} 32... Bf8 {[%clk 0:01:18.5]} 33. Qh1 {[%clk 0:00:14.1]}
33... Rab8 {[%clk 0:01:15.5]} 34. h4 {[%clk 0:00:09.8]} 34... g4 {[%clk
0:01:15.7]} 35. Bg2 {[%clk 0:00:09.9]} 35... Rd7 {[%clk 0:01:14]} 36. Rb2 {[%clk
0:00:05.8]} 36... Rc8 {[%clk 0:01:14.1]} 37. Qb1 {[%clk 0:00:05.7]} 37... Rc3
{[%clk 0:01:14]} 38. Ke2 {[%clk 0:00:05.4]} 38... Bc4 {[%clk 0:01:09.2]} 39. Kd2
{[%clk 0:00:05.7]} 39... Rxd3+ {[%clk 0:01:08.6]} 40. Qxd3 {[%clk 0:00:06.4]}
40... Bxd3 {[%clk 0:01:09]} 41. Kxd3 {[%clk 0:00:07.3]} 41... a3 {[%clk
0:01:09.4]} 42. Rb4 {[%clk 0:00:03.7]} 42... Bxb4 {[%clk 0:01:09]} 0-1

[Event "Early-Titled-Tuesday-Blitz-September-05-2023"]
[Site "Chess.com"]
[Date "2023.09.05"]
[Round "5"]
[White "SpongeBob_03"]
[Black "viktorskliarov"]
[Result "0-1"]
[WhiteElo "2218"]
[BlackElo "2658"]
[TimeControl "180+1"]
[EndTime "8:53:52 PDT"]
[Termination "viktorskliarov won by checkmate"]

1. e4 {[%clk 0:03:00.9]} 1... c5 {[%clk 0:02:56.9]} 2. Nf3 {[%clk 0:03:01]} 2...
Nc6 {[%clk 0:02:56.8]} 3. d4 {[%clk 0:03:01.1]} 3... cxd4 {[%clk 0:02:56.9]} 4.
Nxd4 {[%clk 0:03:02]} 4... Nf6 {[%clk 0:02:57.5]} 5. Nc3 {[%clk 0:03:01.8]} 5...
e5 {[%clk 0:02:58.1]} 6. Ndb5 {[%clk 0:03:01.5]} 6... d6 {[%clk 0:02:58]} 7. Nd5
{[%clk 0:02:59.7]} 7... Nxd5 {[%clk 0:02:57.5]} 8. exd5 {[%clk 0:03:00.6]} 8...
Nb8 {[%clk 0:02:57.5]} 9. c4 {[%clk 0:03:01.2]} 9... a6 {[%clk 0:02:55.1]} 10.
Qa4 {[%clk 0:02:58]} 10... Nd7 {[%clk 0:02:52.7]} 11. Be3 {[%clk 0:02:40.6]}
11... Be7 {[%clk 0:02:39.8]} 12. Bd3 {[%clk 0:02:21.9]} 12... O-O {[%clk
0:02:36.3]} 13. O-O {[%clk 0:02:21.2]} 13... f5 {[%clk 0:02:25]} 14. f4 {[%clk
0:02:20.7]} 14... exf4 {[%clk 0:02:19.7]} 15. Bxf4 {[%clk 0:02:19.4]} 15... Nc5
{[%clk 0:02:19.1]} 16. Qc2 {[%clk 0:01:57.6]} 16... axb5 {[%clk 0:02:15.5]} 17.
cxb5 {[%clk 0:01:48.6]} 17... Nxd3 {[%clk 0:02:10.4]} 18. Qxd3 {[%clk
0:01:49.5]} 18... Bd7 {[%clk 0:02:10.8]} 19. a4 {[%clk 0:01:48.1]} 19... Bg5
{[%clk 0:02:00.8]} 20. Qd4 {[%clk 0:01:42.2]} 20... Bxf4 {[%clk 0:01:59]} 21.
Qxf4 {[%clk 0:01:43.1]} 21... Qf6 {[%clk 0:01:51]} 22. b4 {[%clk 0:01:38.7]}
22... g5 {[%clk 0:01:42.8]} 23. Qf2 {[%clk 0:01:33.7]} 23... f4 {[%clk
0:01:40.6]} 24. Qb6 {[%clk 0:01:27.2]} 24... Rab8 {[%clk 0:01:25.4]} 25. Rac1
{[%clk 0:01:20.8]} 25... Bg4 {[%clk 0:01:15.3]} 26. Rc7 {[%clk 0:01:04.1]} 26...
f3 {[%clk 0:01:11.6]} 27. gxf3 {[%clk 0:00:36.3]} 27... Bxf3 {[%clk 0:01:09.6]}
28. Qf2 {[%clk 0:00:29.3]} 28... g4 {[%clk 0:01:07.5]} 29. Rc4 {[%clk
0:00:18.9]} 29... Qe5 {[%clk 0:00:58.6]} 30. Re1 {[%clk 0:00:17.3]} 30... Qxd5
{[%clk 0:00:55.2]} 31. Qc2 {[%clk 0:00:14.9]} 31... Rbe8 {[%clk 0:00:48.9]} 32.
Rc1 {[%clk 0:00:10.5]} 32... Re2 {[%clk 0:00:47]} 33. Qb1 {[%clk 0:00:03]} 33...
Rg2+ {[%clk 0:00:46.3]} 34. Kh1 {[%clk 0:00:02.8]} 34... Rg3# {[%clk 0:00:46.2]}
0-1

[Event "Early-Titled-Tuesday-Blitz-September-05-2023"]
[Site "Chess.com"]
[Date "2023.09.05"]
[Round "5"]
[White "CixPer1968"]
[Black "Roedor"]
[Result "0-1"]
[WhiteElo "2169"]
[BlackElo "2458"]
[TimeControl "180+1"]
[EndTime "8:53:56 PDT"]
[Termination "Roedor won on time"]

1. d4 {[%clk 0:03:00.1]} 1... Nf6 {[%clk 0:02:59.1]} 2. c4 {[%clk 0:02:59.3]}
2... g6 {[%clk 0:02:58.9]} 3. Nc3 {[%clk 0:02:58.3]} 3... d5 {[%clk 0:02:58.8]}
4. cxd5 {[%clk 0:02:58.5]} 4... Nxd5 {[%clk 0:02:59.7]} 5. e4 {[%clk 0:02:59]}
5... Nxc3 {[%clk 0:03:00.1]} 6. bxc3 {[%clk 0:02:59.9]} 6... Bg7 {[%clk
0:03:00.6]} 7. Nf3 {[%clk 0:02:59.9]} 7... c5 {[%clk 0:03:00.6]} 8. Be3 {[%clk
0:02:59.9]} 8... O-O {[%clk 0:03:01]} 9. Rc1 {[%clk 0:02:59.3]} 9... Qa5 {[%clk
0:03:00.6]} 10. Qd2 {[%clk 0:02:58.9]} 10... Bg4 {[%clk 0:03:00.2]} 11. Be2
{[%clk 0:02:57.9]} 11... cxd4 {[%clk 0:02:57.8]} 12. cxd4 {[%clk 0:02:57.5]}
12... Qxd2+ {[%clk 0:02:49.6]} 13. Nxd2 {[%clk 0:02:58.4]} 13... Bxe2 {[%clk
0:02:48.6]} 14. Kxe2 {[%clk 0:02:59.3]} 14... Nc6 {[%clk 0:02:47.6]} 15. Nb3
{[%clk 0:02:58.2]} 15... e6 {[%clk 0:02:29]} 16. Rhd1 {[%clk 0:02:49]} 16...
Rfd8 {[%clk 0:02:26.1]} 17. f3 {[%clk 0:02:31.4]} 17... Rac8 {[%clk 0:02:23.5]}
18. Rd2 {[%clk 0:02:04.5]} 18... Nxd4+ {[%clk 0:01:10.6]} 19. Bxd4 {[%clk
0:00:54.3]} 19... Rxc1 {[%clk 0:01:08.5]} 20. Bxg7 {[%clk 0:00:42.9]} 20...
Rxd2+ {[%clk 0:01:07.2]} 21. Kxd2 {[%clk 0:00:37.7]} 21... Rg1 {[%clk
0:01:06.3]} 22. Bf6 {[%clk 0:00:32.8]} 22... Rxg2+ {[%clk 0:01:05.1]} 23. Ke3
{[%clk 0:00:33.1]} 23... Rxa2 {[%clk 0:01:04.8]} 24. Nc5 {[%clk 0:00:26.9]}
24... b6 {[%clk 0:01:01.8]} 25. Nd7 {[%clk 0:00:20.6]} 25... Rxh2 {[%clk
0:01:00.8]} 26. Be5 {[%clk 0:00:20.3]} 26... Rh1 {[%clk 0:00:54.3]} 27. Nf6+
{[%clk 0:00:12.6]} 27... Kf8 {[%clk 0:00:53.7]} 28. Nd7+ {[%clk 0:00:12.7]}
28... Ke7 {[%clk 0:00:52.1]} 29. Nb8 {[%clk 0:00:13.4]} 29... Rc1 {[%clk
0:00:43.7]} 30. Na6 {[%clk 0:00:06.9]} 30... f6 {[%clk 0:00:34.2]} 0-1